Workbook

Sheet за 2кв.2024
A5: СПРАВКА
A6: об исполнении норматива формирования расходов на содержание
A7: органов местного самоуправления Юрьев-Польского района
A9: Наименование органов местного самоуправления | B9: Утверждено на 2024 год | I9: Исполнено за 2 квартал 2024 года
B10: Расходы бюджетов ОМС на 2024 год всего (тыс.рублей.) | C10: Расходы на содержание ОМС на 2024 год по данным отчета за 2 квартал 2024 г. (тыс.рублей) | D10: Объем расходы на содержание ОМС на 2024 год по нормативу, установленному постановлением Губернатора области от 01.07.2011 № 662 (тыс.рублей) | E10: Доля расходов на содержание ОМС в общем объеме расходов местных бюджетов сложившаяся за отчетный период (%) | F10: Норматив, установленный на содержание ОМС по постановлению Губернатора области от 01.07.2011 № 662 (%) | G10: Отклонение установленного норматива | H10: Отклонение установленного норматива | I10: Расходы бюджетов ОМС за 2 квартал 2024 года всего (тыс.рублей.) | J10: Расходы на содержание ОМС за 2 квартал 2024 года по данным отчета за 2 квартал 2024 г. (тыс.рублей) | K10: Объем расходы на содержание ОМС на 2024 год по нормативу, установленному постановлением Губернатора области от 01.07.2011 № 662 (тыс.рублей) | L10: Доля расходов на содержание ОМС в общем объеме расходов местных бюджетов сложившаяся за отчетный период (%) | M10: Норматив, установленный на содержание ОМС по постановлению Губернатора области от 01.07.2011 № 662 (%) | N10: Отклонение установленного норматива | O10: Отклонение установленного норматива
G11: от фактически сложившегося по отчету | H11: от фактически сложившегося по отчету | N11: от фактически сложившегося по отчету | O11: от фактически сложившегося по отчету
G12: (%) | H12: (тыс.рублей) | N12: (%) | O12: (тыс.рублей)
A13: 1 | B13: 2 | C13: 3 | D13: 5 | E13: 6 | F13: 7 | G13: 8 | H13: 9 | I13: 10 | J13: 11 | K13: 12 | L13: 13 | M13: 14 | N13: 15 | O13: 16
A14: Юрьев-Польский район | B14: 1642112.4 | C14: 69662.6 | D14: =B14*F14% -> 118232.0928 | E14: =C14/B14*100 -> 4.24225528 | F14: 7.2 | G14: =E14-F14 -> -2.95774472 | H14: =C14-D14 -> -48569.4928 | I14: 720018.3 | J14: 34515.1 | K14: =I14*M14% -> 51841.3176 | L14: =J14/I14*100 -> 4.79364205 | M14: 7.2 | N14: =L14-M14 -> -2.40635795 | O14: =J14-K14 -> -17326.2176
A15: муниципальный район | B15: 1460633.7 | C15: 60327.6 | D15: =B14*F15% -> 74387.69172 | E15: =C15/B14*100 -> 3.673780187 | F15: 4.53 | G15: =E15-F15 -> -0.856219813 | H15: =C15-D15 -> -14060.09172 | I15: 698957.5 | J15: 29998.6 | K15: =I14*M15% -> 32616.82899 | L15: =J15/I14*100 -> 4.166366327 | M15: 4.53 | N15: =L15-M15 -> -0.3636336729 | O15: =J15-K15 -> -2618.22899
A16: Красносельское | B16: 102540 | C16: 3183.4 | D16: =B16*F16% -> 13637.82 | E16: =ROUND((C16/B16*100),1) -> 3.1 | F16: 13.3 | G16: =E16-F16 -> -10.2 | H16: =C16-D16 -> -10454.42 | I16: 23274.2 | J16: 1638.4 | K16: =I16*M16% -> 3095.4686 | L16: =ROUND((J16/I16*100),1) -> 7 | M16: 13.3 | N16: =L16-M16 -> -6.3 | O16: =J16-K16 -> -1457.0686
A17: Небыловское | B17: 61647.5 | C17: 3656.6 | D17: =B17*F17% -> 8199.1175 | E17: =ROUND((C17/B17*100),1) -> 5.9 | F17: 13.3 | G17: =E17-F17 -> -7.4 | H17: =C17-D17 -> -4542.5175 | I17: 19207.3 | J17: 1757.5 | K17: =I17*M17% -> 2554.5709 | L17: =ROUND((J17/I17*100),1) -> 9.2 | M17: 13.3 | N17: =L17-M17 -> -4.1 | O17: =J17-K17 -> -797.0709
A18: Симское | B18: 33913.8 | C18: 2495 | D18: =B18*F18% -> 4510.5354 | E18: =ROUND((C18/B18*100),1) -> 7.4 | F18: 13.3 | G18: =E18-F18 -> -5.9 | H18: =C18-D18 -> -2015.5354 | I18: 11990.1 | J18: 1120.5 | K18: =I18*M18% -> 1594.6833 | L18: =ROUND((J18/I18*100),1) -> 9.3 | M18: 13.3 | N18: =L18-M18 -> -4 | O18: =J18-K18 -> -474.1833
